fUSD/lending_fUSD_20240426
["ID","MTS","AMOUNT","RATE_DAILY","PERIOD"]
[323619602,1714139438696,-334.86,8.771e-05,2]
[323619604,1714139438708,-258.35302942,0.00010603,2]
[323619606,1714139438721,-51.26411045,0.00010604,2]
[323619608,1714139438746,-1982.57588955,0.00010604,2]
[323619611,1714139438770,-155.0,0.00010618,2]
[323619613,1714139438794,-1036.9458186,0.00010618,2]
[323619615,1714139438825,-450.63229959,0.00010619,2]
[323619616,1714139438859,-2003.79,0.00010627,2]
[323619617,1714139438879,-250.0,0.00010685,2]
[323619618,1714139438906,-461.05,0.00010777,2]
[323619619,1714139438928,-3081.00599225,0.00010787,2]
[323619620,1714139438978,-1077.34339013,0.00010787,2]
[323619621,1714139439012,-509.19993432,0.00010787,2]
[323619622,1714139439073,-3066.7706833,0.00010787,2]
[323619623,1714139439094,-200.0,0.00010787,2]
[323619624,1714139439114,-150.0,0.00010932,2]
[323619625,1714139439131,-2750.0,0.00011,3]
[323619626,1714139439158,-334.86,0.00011035,2]
[323619627,1714139439175,-201.03,0.00011049,2]
[323619628,1714139439189,-150.99,0.00011111,2]
[323619630,1714139439202,-1822.27,0.00011157,2]
[323619632,1714139439228,-154.98,0.00011157,2]
[323619633,1714139439241,-300.0,0.000112,2]
[323619634,1714139439259,-1316.90094127,0.00011398,2]
[323619635,1714139439273,-574.33821449,0.0001145,2]
[323619636,1714139439296,-523.0293,0.00011595,2]
[323619637,1714139439310,-614.2841795,0.00011685,2]
[323619638,1714139439323,-331.48202525,0.00011685,2]
[323619640,1714139439364,-282.80215425,0.00011685,2]
[323619642,1714139439382,-292.67057728,0.00011685,2]
[323619644,1714139439410,-321.61360222,0.00011685,2]
[323619646,1714139439436,-614.2841795,0.00011685,2]
[323619648,1714139439461,-614.2841795,0.00011685,2]
[323619650,1714139439483,-614.2841795,0.00011685,2]
[323619651,1714139439502,-614.2841795,0.00011685,2]
[323619654,1714139439533,-614.2841795,0.00011685,2]
[323619655,1714139439558,-500.0,0.00011695,2]
[323619656,1714139439582,-500.0,0.00011695,2]
[323619657,1714139439602,-500.0,0.00011695,2]
[323619658,1714139439619,-500.0,0.00011695,2]
[323619659,1714139439639,-500.0,0.00011695,2]
[323619660,1714139439652,-500.0,0.00011695,2]
[323619661,1714139439669,-500.0,0.00011695,2]
[323619662,1714139439685,-500.0,0.00011695,2]
[323619663,1714139439705,-500.0,0.00011695,2]
[323619664,1714139439735,-500.0,0.00011695,2]
[323619665,1714139439753,-323.43871975,0.00011695,2]
[323619666,1714139439773,-500.0,0.00011695,2]
[323619667,1714139439787,-500.0,0.00011695,2]
[323619668,1714139439812,-500.0,0.00011695,2]
[323619670,1714139439839,-500.0,0.00011695,2]
[323619672,1714139439860,-500.0,0.00011695,2]
[323619674,1714139439886,-500.0,0.00011695,2]
[323619676,1714139439926,-152.60338069,0.00011695,2]
[323619678,1714139439950,-500.0,0.00011695,2]
[323619679,1714139439972,-500.0,0.00011695,2]
[323619680,1714139439997,-500.0,0.00011695,2]
[323619681,1714139440021,-500.0,0.00011695,2]
[323619682,1714139440041,-498.48115019,0.00011695,2]
[323619683,1714139440055,-500.0,0.00011695,2]
[323619684,1714139440069,-500.0,0.00011695,2]
[323619685,1714139440081,-329.80256939,0.00011695,2]
[323619686,1714139440115,-500.0,0.00011695,2]
[323619687,1714139440141,-197.04574191,0.00011695,2]
[323619688,1714139440156,-500.0,0.00011695,2]
[323619689,1714139440178,-504.42755718,0.00011695,2]
[323619691,1714139440204,-500.0,0.00011695,2]
[323619692,1714139440223,-500.0,0.00011695,2]
[323619693,1714139440256,-342.96774986,0.00011695,2]
[323619694,1714139440279,-562.7437747,0.00011695,2]
[323619695,1714139440311,-500.0,0.00011695,2]
[323619696,1714139440325,-500.0,0.00011695,2]
[323619697,1714139440343,-189.43455379,0.00011695,2]
[323619698,1714139440367,-500.0,0.00011695,2]
[323619699,1714139440388,-500.0,0.00011695,2]
[323619700,1714139440414,-500.0,0.00011695,2]
[323619701,1714139440437,-500.0,0.00011695,2]
[323619702,1714139440471,-500.0,0.00011695,2]
[323619703,1714139440508,-745.47,0.00011695,2]
[323619704,1714139440529,-500.0,0.00011695,2]
[323619706,1714139440558,-504.05367567,0.00011695,2]
[323619707,1714139440574,-500.0,0.00011695,2]
[323619708,1714139440588,-505.69626416,0.00011695,2]
[323619709,1714139440615,-500.0,0.00011695,2]
[323619710,1714139440629,-500.0,0.00011695,2]
[323619711,1714139440654,-500.0,0.00011695,2]
[323619712,1714139440670,-500.0,0.00011695,2]
[323619713,1714139440699,-503.97108559,0.00011695,2]
[323619714,1714139440718,-500.0,0.00011695,2]
[323619715,1714139440732,-500.0,0.00011695,2]
[323619716,1714139440747,-500.0,0.00011695,2]
[323619717,1714139440758,-1076.41,0.00011695,2]
[323619718,1714139440770,-500.0,0.00011695,2]
[323619719,1714139440790,-500.0,0.00011695,2]
[323619720,1714139440807,-500.0,0.00011695,2]
[323619721,1714139440829,-500.0,0.00011695,2]
[323619722,1714139440858,-500.0,0.00011695,2]
[323619723,1714139440899,-500.0,0.00011695,2]
[323619724,1714139440923,-527.58269509,0.00011695,2]
[323619725,1714139440942,-500.0,0.00011695,2]
[323619726,1714139440961,-500.0,0.00011695,2]
[323619727,1714139440981,-500.0,0.00011695,2]
[323619728,1714139440999,-659.42959231,0.00011695,2]
[323619729,1714139441101,-614.2841795,0.00011685,2]
[323619730,1714139441121,-15.8658205,0.00011695,2]
[323619731,1714139441144,-519.23458719,0.00011695,2]
[323619732,1714139441166,-504.21322537,0.00011695,2]
[323619733,1714139441185,-500.0,0.00011695,2]
[323619734,1714139441203,-500.0,0.00011695,2]
[323619735,1714139441228,-500.0,0.00011695,2]
[323619736,1714139441251,-500.0,0.00011695,2]
[323619737,1714139441279,-500.71508038,0.00011695,2]
[323619738,1714139441314,-522.5913822,0.00011695,2]
[323619739,1714139441344,-500.0,0.00011695,2]
[323619740,1714139441358,-500.0,0.00011695,2]
[323619741,1714139441373,-500.0,0.00011695,2]
[323619742,1714139441389,-306.06473871,0.00011695,2]
[323619743,1714139441407,-500.0,0.00011695,2]
[323619744,1714139441429,-500.0,0.00011695,2]
[323619745,1714139441445,-503.46456039,0.00011695,2]
[323619746,1714139441464,-500.0,0.00011695,2]
[323619747,1714139441486,-863.13,0.00011695,2]
[323619748,1714139441497,-646.49321488,0.00011695,2]
[323619749,1714139441523,-747.49,0.00011695,2]
[323619750,1714139441547,-511.99,0.00011695,2]
[323619751,1714139441564,-505.92591605,0.00011695,2]
[323619752,1714139441582,-500.0,0.00011695,2]
[323619753,1714139441614,-500.0,0.00011695,2]
[323619754,1714139441650,-341.73259696,0.00011695,2]
[323619755,1714139441675,-500.0,0.00011695,2]
[323619756,1714139441710,-500.0,0.00011695,2]
[323619757,1714139441731,-282.38232527,0.00011695,2]
[323619758,1714139441769,-217.61767473,0.00011695,2]
[323619759,1714139441791,-500.0,0.00011695,2]
[323619760,1714139441811,-317.57069065,0.00011695,2]
[323619761,1714139441829,-30.77106048,0.00011695,2]
[323619762,1714139441848,-469.22893952,0.00011695,2]
[323619763,1714139441861,-500.0,0.00011695,2]
[323619764,1714139441875,-318.26106048,0.00011695,2]
[323619765,1714139441891,-181.73893952,0.00011695,2]
[323619766,1714139441902,-184.18106048,0.00011695,2]
[323619767,1714139441916,-348.83893952,0.00011695,2]
[323619768,1714139441928,-179.48646848,0.00011695,2]
[323619769,1714139441950,-320.51353152,0.00011695,2]
[323619770,1714139441979,-500.0,0.00011695,2]
[323619771,1714139441998,-500.0,0.00011695,2]
[323619772,1714139442025,-500.0,0.00011695,2]
[323619773,1714139442046,-500.0,0.00011695,2]
[323619774,1714139442065,-500.0,0.00011695,2]
[323619776,1714139442091,-500.0,0.00011695,2]
[323619777,1714139442113,-500.0,0.00011695,2]
[323619778,1714139442135,-500.0,0.00011695,2]
[323619779,1714139442158,-1043.07,0.00011695,2]
[323619780,1714139442189,-500.0,0.00011695,2]
[323619781,1714139442215,-500.0,0.00011695,2]
[323619782,1714139442252,-11.51646848,0.00011695,2]
[323619783,1714139442296,-614.2841795,0.00011685,2]
[323619784,1714139442312,-161.16043076,0.00011695,2]
[323619785,1714139442343,-327.32310076,0.00011695,2]
[323619786,1714139442354,-129.44310719,0.00011695,2]
[323619787,1714139442813,-614.2841795,0.00011685,2]
[323619788,1714139442852,-614.2841795,0.00011685,2]
[323619789,1714139442877,-370.55689281,0.00011695,2]
[323619790,1714139442892,-654.77,0.00011695,2]
[323619791,1714139442923,-1105.19,0.00011695,2]
[323619792,1714139442943,-832.0,0.00011695,2]
[323619793,1714139442970,-500.0,0.00011695,2]
[323619794,1714139442995,-500.0,0.00011695,2]
[323619795,1714139443031,-500.0,0.00011695,2]
[323619796,1714139443056,-500.0,0.00011695,2]
[323619798,1714139443073,-500.0,0.00011695,2]
[323619799,1714139443103,-500.0,0.00011695,2]
[323619800,1714139443123,-500.0,0.00011695,2]
[323619801,1714139443147,-500.0,0.00011695,2]
[323619802,1714139443159,-760.89303735,0.00011695,2]
[323619803,1714139443184,-68.85696265,0.00011695,2]
[323619805,1714139443197,-500.0,0.00011695,2]
[323619807,1714139443217,-641.84802834,0.00011695,2]
[323619809,1714139443235,-500.0,0.00011695,2]
[323619811,1714139443246,-500.0,0.00011695,2]
[323619813,1714139443257,-500.0,0.00011695,2]
[323619814,1714139443269,-735.69,0.00011695,2]
[323619817,1714139443279,-572.85,0.00011695,2]
[323619819,1714139443312,-500.0,0.00011695,2]
[323619820,1714139443335,-500.0,0.00011695,2]
[323619822,1714139443355,-500.0,0.00011695,2]
[323619824,1714139443375,-500.0,0.00011695,2]
[323619825,1714139443392,-500.0,0.00011695,2]
[323619826,1714139443412,-500.0,0.00011695,2]
[323619827,1714139443427,-500.0,0.00011695,2]
[323619828,1714139443448,-856.89,0.00011695,2]
[323619829,1714139443463,-500.0,0.00011695,2]
[323619830,1714139443478,-500.0,0.00011695,2]
[323619831,1714139443500,-500.0,0.00011695,2]
[323619832,1714139443519,-500.0,0.00011695,2]
[323619833,1714139443533,-500.0,0.00011695,2]
[323619834,1714139443551,-500.0,0.00011695,2]
[323619835,1714139443569,-500.0,0.00011695,2]
[323619836,1714139443597,-500.0,0.00011695,2]
[323619837,1714139443613,-500.0,0.00011695,2]
[323619838,1714139443630,-500.0,0.00011695,2]
[323619839,1714139443643,-608.37,0.00011695,2]
[323619841,1714139443666,-500.0,0.00011695,2]
[323619843,1714139443685,-500.0,0.00011695,2]
[323619845,1714139443702,-500.0,0.00011695,2]
[323619847,1714139443718,-500.0,0.00011695,2]
[323619848,1714139443743,-500.0,0.00011695,2]
[323619851,1714139443769,-500.0,0.00011695,2]
[323619852,1714139443788,-514.08,0.00011695,2]
[323619855,1714139443814,-500.0,0.00011695,2]
[323619856,1714139443831,-500.0,0.00011695,2]
[323619857,1714139443853,-981.29,0.00011695,2]
[323619858,1714139443876,-500.0,0.00011695,2]
[323619859,1714139443888,-500.0,0.00011695,2]
[323619860,1714139443906,-563.06,0.00011695,2]
[323619861,1714139443933,-500.0,0.00011695,2]
[323619862,1714139443943,-500.0,0.00011695,2]
[323619863,1714139443963,-500.0,0.00011695,2]
[323619864,1714139443975,-500.0,0.00011695,2]
[323619865,1714139444011,-500.0,0.00011695,2]
[323619866,1714139444030,-564.9,0.00011695,2]
[323619867,1714139444045,-500.0,0.00011695,2]
[323619868,1714139444075,-500.0,0.00011695,2]
[323619869,1714139444087,-500.0,0.00011695,2]
[323619870,1714139444103,-1043.33,0.00011695,2]
[323619871,1714139444121,-500.0,0.00011695,2]
[323619872,1714139444144,-386.87655188,0.00011695,2]
[323619873,1714139444236,-614.2841795,0.00011685,2]
[323619874,1714139444258,-113.12344812,0.00011695,2]
[323619875,1714139444276,-500.0,0.00011695,2]
[323619876,1714139444300,-1096.11,0.00011695,2]
[323619877,1714139444314,-500.0,0.00011695,2]
[323619878,1714139444332,-500.0,0.00011695,2]
[323619879,1714139444366,-500.0,0.00011695,2]
[323619880,1714139444386,-470.18555338,0.00011695,2]
[323619881,1714139444399,-500.0,0.00011695,2]
[323619882,1714139444410,-500.0,0.00011695,2]
[323619883,1714139444422,-500.0,0.00011695,2]
[323619884,1714139444444,-500.0,0.00011695,2]
[323619885,1714139444472,-500.0,0.00011695,2]
[323619886,1714139444504,-500.0,0.00011695,2]
[323619887,1714139444548,-500.0,0.00011695,2]
[323619888,1714139444563,-881.16,0.00011695,2]
[323619889,1714139444576,-500.0,0.00011695,2]
[323619890,1714139444601,-500.0,0.00011695,2]
[323619891,1714139444627,-500.0,0.00011695,2]
[323619892,1714139444650,-500.0,0.00011695,2]
[323619893,1714139444671,-500.0,0.00011695,2]
[323619894,1714139444696,-500.0,0.00011695,2]
[323619895,1714139444722,-500.0,0.00011695,2]
[323619896,1714139444754,-503.19420175,0.00011695,2]
[323619897,1714139444771,-150.84909997,0.00011695,2]
[323619898,1714139445361,-614.2841795,0.00011685,2]
[323619899,1714139445373,-614.2841795,0.00011685,2]
[323619900,1714139445392,-614.2841795,0.00011685,2]
[323619901,1714139445416,-614.2841795,0.00011685,2]
[323619902,1714139445447,-614.2841795,0.00011685,2]
[323619903,1714139445466,-614.2841795,0.00011685,2]
[323619904,1714139445485,-228.76448532,0.00011685,2]
[323619905,1714139445745,-385.51969418,0.00011685,2]
[323619906,1714139445756,-614.2841795,0.00011685,2]
[323619907,1714139445766,-614.2841795,0.00011685,2]
[323619908,1714139445776,-614.2841795,0.00011685,2]
[323619909,1714139445787,-614.2841795,0.00011685,2]
[323619910,1714139445796,-349.15090003,0.00011695,2]
[323619911,1714139445806,-500.0,0.00011695,2]
[323619912,1714139445818,-500.0,0.00011695,2]
[323619913,1714139445828,-474.15460231,0.00011695,2]
[323619914,1714139445838,-500.0,0.00011695,2]
[323619915,1714139445850,-500.0,0.00011695,2]
[323619916,1714139445860,-500.0,0.00011695,2]
[323619917,1714139445878,-505.1967258,0.00011695,2]
[323619918,1714139445902,-500.0,0.00011695,2]
[323619919,1714139445934,-500.0,0.00011695,2]
[323619920,1714139445950,-644.27,0.00011695,2]
[323619921,1714139445965,-967.13,0.00011695,2]
[323619922,1714139445989,-878.3,0.00011695,2]
[323619923,1714139446011,-503.97786524,0.00011695,2]
[323619924,1714139446033,-500.0,0.00011695,2]
[323619925,1714139446063,-500.0,0.00011695,2]
[323619926,1714139446100,-160.29983827,0.00011869,2]
[323619927,1714139446123,-614.2841795,0.0001188,2]
[323619928,1714139446160,-500.0,0.00011899,2]
[323619929,1714139446186,-500.0,0.00011899,2]
[323619930,1714139446204,-500.0,0.00011899,2]
[323619931,1714139446223,-500.0,0.00011899,2]
[323619932,1714139446237,-500.0,0.00011899,2]
[323619933,1714139446254,-500.0,0.00011899,2]
[323619934,1714139446274,-500.0,0.00011899,2]
[323619935,1714139446288,-617.84,0.00011899,2]
[323619936,1714139446300,-500.0,0.00011899,2]
[323619938,1714139446336,-500.0,0.00011899,2]
[323619939,1714139446359,-500.0,0.00011899,2]
[323619940,1714139446379,-500.0,0.00011899,2]
[323619941,1714139446400,-500.0,0.00011899,2]
[323619942,1714139446421,-500.0,0.00011899,2]
[323619943,1714139446443,-500.0,0.00011899,2]
[323619944,1714139446463,-500.0,0.00011899,2]
[323619945,1714139446486,-500.0,0.00011899,2]
[323619946,1714139446506,-640.41,0.00011899,2]
[323619947,1714139446520,-500.0,0.00011899,2]
[323619948,1714139446532,-500.0,0.00011899,2]
[323619949,1714139446551,-500.0,0.00011899,2]
[323619950,1714139446561,-500.0,0.00011899,2]
[323619952,1714139446572,-500.0,0.00011899,2]
[323619953,1714139446591,-849.03,0.00011899,2]
[323619954,1714139446623,-500.0,0.00011899,2]
[323619955,1714139446644,-500.0,0.00011899,2]
[323619956,1714139446683,-500.0,0.00011899,2]
[323619957,1714139446705,-575.91,0.00011899,2]
[323619958,1714139446732,-607.54,0.00011899,2]
[323619959,1714139446755,-500.0,0.00011899,2]
[323619960,1714139446784,-500.0,0.00011899,2]
[323619961,1714139446808,-500.13,0.00011899,2]
[323619962,1714139446833,-500.0,0.00011899,2]
[323619963,1714139446856,-844.57,0.00011899,2]
[323619964,1714139446884,-476.47490586,0.00011899,2]
[323619965,1714139446902,-518.06187533,0.00011899,2]
[323619966,1714139446920,-500.0,0.00011899,2]
[323619967,1714139446944,-500.0,0.00011899,2]
[323619968,1714139446970,-500.0,0.00011899,2]
[323619969,1714139446986,-500.0,0.00011899,2]
[323619970,1714139446999,-500.0,0.00011899,2]
[323619971,1714139447015,-548.28211566,0.00011899,2]
[323619972,1714139447048,-500.0,0.00011899,2]
[323619973,1714139447069,-500.0,0.00011899,2]
[323619974,1714139447093,-500.0,0.00011899,2]
[323619975,1714139447110,-500.0,0.00011899,2]
[323619976,1714139447137,-500.0,0.00011899,2]
[323619977,1714139447162,-500.0,0.00011899,2]
[323619978,1714139447182,-501.49738661,0.00011899,2]
[323619979,1714139447200,-500.0,0.00011899,2]
[323619980,1714139447218,-918.51,0.00011899,2]
[323619981,1714139447232,-500.0,0.00011899,2]
[323619982,1714139447262,-500.0,0.00011899,2]
[323619983,1714139447274,-526.6,0.00011899,2]
[323619984,1714139447288,-500.0,0.00011899,2]
[323619985,1714139447307,-500.0,0.00011899,2]
[323619986,1714139447325,-500.0,0.00011899,2]
[323619987,1714139447346,-500.0,0.00011899,2]
[323619988,1714139447360,-684.05,0.00011899,2]
[323619989,1714139447372,-500.0,0.00011899,2]
[323619990,1714139447383,-500.0,0.00011899,2]
[323619991,1714139447400,-993.25,0.00011899,2]
[323619992,1714139447417,-500.0,0.00011899,2]
[323619993,1714139447435,-500.0,0.00011899,2]
[323619994,1714139447450,-500.0,0.00011899,2]
[323619995,1714139447460,-500.0,0.00011899,2]
[323619996,1714139447471,-500.0,0.00011899,2]
[323619997,1714139447484,-500.0,0.00011899,2]
[323619998,1714139447494,-500.0,0.00011899,2]
[323619999,1714139447505,-500.0,0.00011899,2]
[323620000,1714139447518,-500.0,0.00011899,2]
[323620001,1714139447528,-190.15538866,0.00011899,2]
[323620002,1714139447538,-500.0,0.00011899,2]
[323620003,1714139447548,-500.0,0.00011899,2]
[323620004,1714139447558,-500.0,0.00011899,2]
[323620005,1714139447568,-1041.68,0.00011899,2]
[323620006,1714139447578,-500.0,0.00011899,2]
[323620007,1714139447588,-500.0,0.00011899,2]
[323620008,1714139447604,-582.55288457,0.00011899,2]
[323620009,1714139447622,-500.0,0.00011899,2]
[323620010,1714139447641,-500.0,0.00011899,2]
[323620011,1714139447659,-500.0,0.00011899,2]
[323620012,1714139447682,-500.0,0.00011899,2]
[323620013,1714139447711,-500.0,0.00011899,2]
[323620014,1714139447734,-500.0,0.00011899,2]
[323620015,1714139447761,-734.09,0.00011899,2]
[323620016,1714139447786,-500.0,0.00011899,2]
[323620017,1714139447820,-505.72431209,0.00011899,2]
[323620018,1714139447843,-500.0,0.00011899,2]
[323620019,1714139447854,-500.0,0.00011899,2]
[323620020,1714139447875,-825.74,0.00011899,2]
[323620021,1714139447891,-500.0,0.00011899,2]
[323620022,1714139447901,-500.0,0.00011899,2]
[323620024,1714139447922,-541.74,0.00011899,2]
[323620026,1714139447950,-500.0,0.00011899,2]
[323620027,1714139447967,-500.0,0.00011899,2]
[323620029,1714139447983,-500.0,0.00011899,2]
[323620030,1714139448010,-500.0,0.00011899,2]
[323620031,1714139448026,-500.0,0.00011899,2]
[323620032,1714139448043,-500.0,0.00011899,2]
[323620033,1714139448057,-500.0,0.00011899,2]
[323620034,1714139448068,-500.0,0.00011899,2]
[323620035,1714139448081,-1528.02,0.00011899,2]
[323620036,1714139448091,-1629.07,0.00011899,2]
[323620037,1714139448105,-500.0,0.00011899,2]
[323620038,1714139448116,-6330.19,0.00011899,2]
[323620039,1714139448130,-10315.86918967,0.000119,2]
[323620040,1714139448140,-20000.0,0.000119,2]
[323620041,1714139448159,-160.29983827,0.000119,2]
[323620042,1714139448182,-852.47587174,0.000119,2]
[323620043,1714139448208,-500.0,0.00011903,2]
[323620044,1714139448234,-1000.0,0.00011904,2]
[323620045,1714139448247,-500.0,0.00011904,2]
[323620046,1714139448283,-500.0,0.00011948,2]
[323620047,1714139448301,-500.0,0.00011948,2]
[323620048,1714139448323,-683.68,0.00011948,2]
[323620049,1714139448335,-500.0,0.00011948,2]
[323620050,1714139448360,-500.0,0.00011948,2]
[323620051,1714139448380,-500.0,0.00011948,2]
[323620052,1714139448394,-500.0,0.00011948,2]
[323620053,1714139448415,-500.0,0.00011958,2]
[323620054,1714139448437,-500.0,0.00011958,2]
[323620055,1714139448452,-500.0,0.00011958,2]
[323620056,1714139448467,-324.4,0.00011958,2]
[323620057,1714139448483,-190.78723799,0.00011958,2]
[323620058,1714139448494,-540.29785386,0.00011958,2]
[323620059,1714139448524,-500.0,0.00011958,2]
[323620060,1714139448536,-500.0,0.00011958,2]
[323620061,1714139448559,-505.83789522,0.00011958,2]
[323620062,1714139448591,-504.23800226,0.00011958,2]
[323620063,1714139448611,-500.0,0.00011958,2]
[323620064,1714139448639,-502.23393875,0.00011958,2]
[323620065,1714139448655,-503.56608947,0.00011958,2]
[323620066,1714139448665,-500.0,0.00011958,2]
[323620067,1714139448683,-500.0,0.00011958,2]
[323620068,1714139448693,-500.0,0.00011958,2]
[323620069,1714139448706,-500.0,0.00011958,2]
[323620070,1714139448738,-500.0,0.00011958,2]
[323620071,1714139448763,-500.0,0.00011958,2]
[323620072,1714139448778,-500.0,0.00011958,2]
[323620073,1714139448806,-500.0,0.00011958,2]
[323620074,1714139448824,-500.0,0.00011958,2]
[323620075,1714139448852,-500.0,0.00011958,2]
[323620076,1714139448875,-931.75,0.00011958,2]
[323620077,1714139448888,-500.0,0.00011958,2]
[323620078,1714139448911,-578.1,0.00011958,2]
[323620079,1714139448951,-633.29,0.00011958,2]
[323620080,1714139448969,-724.94,0.00011958,2]
[323620081,1714139448990,-46810.0,0.00011959,2]
[323620082,1714139449011,-1390.32,0.00011968,2]
[323620083,1714139449040,-500.0,0.00011968,2]
[323620084,1714139449054,-701.5,0.00011968,2]
[323620085,1714139449066,-500.0,0.00011968,2]
[323620086,1714139449076,-500.0,0.00011968,2]
[323620087,1714139449094,-500.0,0.00011968,2]
[323620088,1714139449111,-500.0,0.00011968,2]
[323620089,1714139449129,-500.0,0.00011968,2]
[323620090,1714139449144,-500.0,0.00011968,2]
[323620091,1714139449168,-500.0,0.00011968,2]
[323620092,1714139449194,-500.0,0.00011968,2]
[323620093,1714139449217,-500.0,0.00011968,2]
[323620094,1714139449257,-553.85,0.00011968,2]
[323620095,1714139449299,-500.0,0.00011968,2]
[323620096,1714139449325,-13697.82,0.00011968,2]
[323620097,1714139449346,-2721.64,0.00011968,2]
[323620098,1714139449358,-405.31,0.00011968,2]
[323620099,1714139449373,-500.0,0.00011968,2]
[323620100,1714139449399,-500.0,0.00011969,2]
[323620101,1714139449419,-498.57132395,0.00011969,2]
[323620102,1714139449448,-500.0,0.00011969,2]
[323620103,1714139449479,-270.97134319,0.00011969,2]
[323620104,1714139449501,-500.0,0.00011969,2]
[323620105,1714139449523,-500.0,0.00011969,2]
[323620106,1714139449544,-500.0,0.00011969,2]
[323620107,1714139449574,-502.64318487,0.00011969,2]
[323620108,1714139449600,-500.0,0.00011969,2]
[323620109,1714139449620,-500.0,0.00011969,2]
[323620110,1714139449648,-500.0,0.00011969,2]
[323620111,1714139449672,-500.0,0.00011969,2]
[323620112,1714139449688,-500.0,0.00011969,2]
[323620113,1714139449713,-500.0,0.00011969,2]
[323620114,1714139449727,-500.0,0.00011969,2]
[323620115,1714139449740,-500.0,0.00011969,2]
[323620116,1714139449769,-500.0,0.00011969,2]
[323620117,1714139449804,-503.00244402,0.00011969,2]
[323620118,1714139449832,-500.0,0.00011969,2]
[323620119,1714139449854,-500.0,0.00011969,2]
[323620120,1714139449873,-500.0,0.00011969,2]
[323620121,1714139449902,-562.0,0.00011969,2]
[323620122,1714139449929,-529.26,0.00011969,2]
[323620123,1714139449957,-500.0,0.00011969,2]
[323620124,1714139449996,-500.0,0.00011969,2]
[323620125,1714139450010,-500.0,0.00011969,2]
[323620126,1714139450021,-527.12064764,0.00011969,2]
[323620127,1714139450033,-662.79,0.00011969,2]
[323620128,1714139450045,-500.0,0.00011969,2]
[323620129,1714139450075,-501.61813921,0.00011969,2]
[323620130,1714139450107,-500.0,0.00011969,2]
[323620131,1714139450136,-500.0,0.00011969,2]
[323620132,1714139450163,-506.67214817,0.00011969,2]
[323620133,1714139450193,-500.0,0.00011969,2]
[323620134,1714139450218,-793.32,0.00011969,2]
[323620135,1714139450245,-500.0,0.00011969,2]
[323620136,1714139450256,-500.0,0.00011969,2]
[323620137,1714139450275,-500.0,0.00011969,2]
[323620138,1714139450290,-500.0,0.00011969,2]
[323620139,1714139450306,-500.0,0.00011969,2]
[323620140,1714139450352,-506.28958384,0.00011969,2]
[323620141,1714139450383,-500.0,0.00011969,2]
[323620142,1714139450399,-500.0,0.00011969,2]
[323620143,1714139450428,-500.0,0.00011969,2]
[323620144,1714139450454,-500.0,0.00011969,2]
[323620145,1714139450476,-500.0,0.00011969,2]
[323620146,1714139450499,-501.83594152,0.00011969,2]
[323620147,1714139450524,-500.0,0.00011969,2]
[323620148,1714139450552,-1001.36,0.00011969,2]
[323620149,1714139450576,-500.0,0.00011969,2]
[323620150,1714139450592,-714.25,0.00011969,2]